[Event "97th Argentine Championship 2022"]
[Site "Barichole"]
[Date "2022.12.04"]
[Round "4.4"]
[White "Sorin, Ariel"]
[Black "Fiorito, Joaquin"]
[Result "0-1"]
[ECO "D45"]
[WhiteElo "2363"]
[BlackElo "2344"]
[Annotator "TA"]
[PlyCount "78"]
[EventDate "2022.12.01"]
[EventType "tourn"]
[EventCountry "ARG"]
[SourceTitle "playchess.com"]
[Source "ChessBase"]
[SourceQuality "1"]
[TimeControl "40/5400+30:1800+30"]

{[%evp 21,78,0,7,-29,-16,-10,18,13,12,0,-4,-16,-23,-77,-58,-108,-94,-96,-89,-164,-121,-208,-200,-199,-200,-235,-215,-216,-125,-127,-105,-111,-26,-248,-250,-243,-247,-354,-324,-358,-337,-852,-649,-597,-386,-669,-636,-837,-812,-826,-794,-1011,-1035,-1013,-991,-982,-959,-916,-777]} 1. d4 {[%emt 0:00:02] ChessBase II} Nf6 {[%emt 0:00:09]} 2. c4 {[%emt 0:00:05]} e6 {[%emt 0:00:06]} 3. Nf3 {[%emt 0:00:09]} d5 {[%emt 0:00:08]} 4. Nc3 {[%emt 0:00:04]} c6 {[%emt 0:00:14]} 5. e3 {[%emt 0:01:32]} Nbd7 {[%emt 0:00:08]} 6. Qc2 {[%emt 0:02:01]} Bd6 {[%emt 0:00:27]} 7. Bd2 {[%emt 0:00:59]} O-O {[%emt 0:00:48]} 8. O-O-O {[%emt 0:10:52]} e5 {[%emt 0:01:07]} 9. cxd5 {[%emt 0:06:45]} cxd5 {[%emt 0:00:29]} 10. Nb5 {[%emt 0:08:33]} Bb8 {[%emt 0:01:06]} 11. dxe5 {[%emt 0:02:44]} Nxe5 {[%emt 0:00:10]} 12. Bc3 {[%emt 0:00:25] D45: Semi-Slav: 5 e3.} Qe7 {[%emt 0:02:10]} 13. Bd4 {[%emt 0:10:21]} b6 {[%emt 0:17:12] Prevents Bc5.} 14. Nc3 {[%emt 0:02:31] [#] The position is equal.} g6 $146 {[%emt 0:05:39]} ({Predecessor:} 14... Bb7 15. Qf5 Neg4 16. Rd2 Qe6 17. Qxe6 fxe6 18. h3 Nxf2 19. Rxf2 Ne4 20. Nxe4 dxe4 21. Bd3 exd3 {0-1 (21) Svensson,O-Varjomaa,T Sweden 1979 Corr Nr. 1 [ChessBase II]}) 15. Be2 {[%emt 0:11:46]} Bf5 {[%emt 0:03:53]} 16. Qb3 {[%emt 0:00:08]} Bd6 {[%emt 0:03:32]} 17. Nxe5 {[%emt 0:04:29]} (17. Kd2 $1 $11 {keeps the balance.}) 17... Bxe5 $17 {[%emt 0:00:08]} 18. Bf3 {[%emt 0:00:37]} (18. h3 $15) 18... Rac8 {[%emt 0:05:10][%cal Ob6b5]} 19. Rd2 {[%emt 0:12:12] Against b5} b5 {[%emt 0:10:37]} 20. a3 {[%emt 0:06:31] Prevents b4.} (20. Kd1 $17) 20... a5 {[%emt 0:00:53] ...b4 is the strong threat.} 21. Bxe5 {[%emt 0:03:33]} (21. Kd1 $17 {keeps fighting.}) 21... Qxe5 $19 {[%emt 0:00:09]} 22. Rd4 {[%emt 0:00:42]} Rc5 {[%emt 0:04:59]} 23. g4 {[%emt 0:02:41]} Be6 {[%emt 0:02:24][%cal Bf5e6,Be6c4,Bc4d3][%mdl 32]} 24. Kb1 {[%emt 0:01:22] [#]} Ne4 {[%emt 0:01:41]} (24... Nxg4 $1 $19 {[%mdl 512]} 25. Bxg4 Bxg4 26. Rxg4 Qf5+ 27. Ne4 dxe4) 25. Bxe4 $17 {[%emt 0:00:54]} dxe4 {[%emt 0:00:06]} 26. Qd1 {[%emt 0:00:03]} b4 {[%emt 0:02:23] Black is more active.} (26... f5 $17 27. Rd8 Rc8) 27. axb4 $2 {[%emt 0:01:09] This costs White the game.} (27. Nxe4 $11 {and White has nothing to worry.} Rd5 28. f4 (28. axb4 Rfd8 $17) 28... Rxd4 29. Qxd4 Qxd4 30. exd4) 27... axb4 $19 {[%emt 0:00:05]} 28. Rxb4 {[%emt 0:00:18] [#]} Bc4 $1 {[%emt 0:00:20]} 29. Qd4 {[%emt 0:00:20]} (29. Rxc4 {is the only way for White.} Rxc4 30. Qd5 Qxd5 31. Nxd5) 29... Bd3+ {[%emt 0:00:05]} 30. Kc1 {[%emt 0:00:22]} Qc7 {[%emt 0:00:21]} 31. Rb3 $2 {[%emt 0:02:33]} (31. Rd1) 31... Rc4 {[%emt 0:03:04]} 32. Qb6 {[%emt 0:00:27]} Qe5 {[%emt 0:00:20] Threatens to win with ...Rfc8.} 33. Kd2 $2 {[%emt 0:01:15]} (33. h4 h5 34. Kd2) 33... Rcc8 {[%emt 0:00:06] Black is clearly winning.} 34. f4 {[%emt 0:00:28]} Qe7 {[%emt 0:02:27] ( -> ...Qh4)} 35. g5 {[%emt 0:01:29]} Rfd8 {[%emt 0:00:04] aiming for ...Qd7.} 36. Rb4 {[%emt 0:01:27]} Rd6 {[%emt 0:01:05]} 37. Qa5 {[%emt 0:00:15]} Ra6 {[%emt 0:00:45]} 38. Rxe4 {[%emt 0:00:42]} Bxe4 {[%emt 0:35:00]} 39. Qxa6 Rd8+ {[%emt 0:00:00] Weighted Error Value: White=0.78/Black=0.37} 0-1

[Event "97th Argentine Championship 2022"]
[Site "Barichole"]
[Date "2022.12.04"]
[Round "4.5"]
[White "Paveto, Kevin"]
[Black "Pichot, Alan"]
[Result "0-1"]
[ECO "C55"]
[WhiteElo "2431"]
[BlackElo "2637"]
[Annotator "TA"]
[PlyCount "60"]
[EventDate "2022.12.01"]
[EventType "tourn"]
[EventCountry "ARG"]
[SourceTitle "playchess.com"]
[Source "ChessBase"]
[SourceQuality "1"]
[TimeControl "40/5400+30:1800+30"]

{[%evp 9,60,0,25,25,35,28,30,-53,-44,-69,-64,-66,-74,-68,-70,-102,-101,-97,-87,-86,-72,-92,-89,-85,-75,-97,-94,-86,-81,-162,-163,-152,-11,-115,-99,-173,-174,-191,-149,-219,-204,-260,-259,-252,-195,-185,-187,-420,-427,-416,-396,-405,-369]} 1. e4 {[%emt 0:01:56]} e5 {[%emt 0:02:10]} 2. Nf3 {[%emt 0:00:24]} Nc6 {[%emt 0:00:15]} 3. Bc4 {[%emt 0:00:42]} Nf6 {[%emt 0:00:14]} 4. d3 {[%emt 0:00:08]} h6 {[%emt 0:00:11]} 5. Nc3 {[%emt 0:02:15]} d6 {[%emt 0:00:59]} 6. a4 {[%emt 0:02:56] C55: Two Knights: 4 d3, 4 d4 exd4 5 e5 and Max Lange Attack.} g6 {[%emt 0:01:40]} 7. h3 {[%emt 0:01:47]} Bg7 {[%emt 0:00:21] [#]} 8. g4 $146 {[%emt 0:01:10]} (8. Be3 $11) ({Predecessor:} 8. Be3 Na5 9. Ba2 c5 10. Nd5 Nc6 11. c3 Be6 12. Nxf6+ Qxf6 13. a5 Bxa2 14. Rxa2 {0-1 (64) Demchenko,A (2654)-Fedoseev,V (2701) Chess.com INT 2022}) 8... Be6 $15 {[%emt 0:04:25]} 9. g5 {[%emt 0:08:23]} hxg5 {[%emt 0:02:24]} 10. Bxe6 {[%emt 0:03:09]} fxe6 {[%emt 0:00:06]} 11. Bxg5 {[%emt 0:01:14]} Qd7 {[%emt 0:02:10]} 12. Qd2 {[%emt 0:03:20]} O-O-O {[%emt 0:01:31]} 13. O-O-O {[%emt 0:00:49]} Rdf8 {[%emt 0:01:56] Threatens to win with ...Nh7.} 14. Nh4 {[%emt 0:23:19]} Qf7 {[%emt 0:06:11]} 15. Ng2 {[%emt 0:02:58]} Nh5 {[%emt 0:01:47]} 16. Rdf1 {[%emt 0:01:40]} Nd4 {[%emt 0:09:55][%cal Bc6d4,Bd4f3,Bf3g5][%mdl 32] White must now prevent ...Nf3.} 17. Kb1 {[%emt 0:20:16]} Nf3 {[%emt 0:15:25] Black is more active.} 18. Qe3 {[%emt 0:01:34]} d5 {[%emt 0:07:34]} 19. Qxa7 {[%emt 0:03:41]} Nxg5 $19 {[%emt 0:00:53]} 20. Nb5 {[%emt 0:00:21] [#]} Qe7 {[%emt 0:01:36]} (20... dxe4 21. dxe4 Nf3 22. Rd1 $18 (22. Qa8+ Kd7 $16)) ({Black should try} 20... Nf3 $1 $17 {[%cal Rf3d2] And now ...Nd2+ would win.} 21. Qa8+ Kd7 22. Qxb7 Rc8 23. exd5 (23. Na7 $2 Rb8 $19) 23... exd5) 21. Ne3 {[%emt 0:01:55] [#]} (21. Qa8+ $2 Kd7 22. Qxb7 Qc5 23. exd5 exd5 $19) (21. c4 $1 $11 {was the only way to keep the balance.} dxe4 22. c5 (22. Qa8+ $2 Kd7 $19)) 21... Nf4 $1 $17 {[%emt 0:00:41]} (21... dxe4 $6 22. Rd1 (22. Qa8+ $2 Kd7 $19) 22... Kd7 23. Qxb7 $11) 22. exd5 {[%emt 0:02:07]} (22. Qa8+ $2 Kd7 23. Qa7 Rb8 $19) (22. Rc1 $17 Qd8 23. Ng4) 22... exd5 $19 {[%emt 0:00:35]} (22... Nxd5 23. Rfg1 Bf6 24. Rg4 $15) 23. c4 {[%emt 0:02:02]} (23. Qa8+ $2 Kd7 24. Qxb7 Qc5 $19) 23... Rf6 {[%emt 0:06:44] Strongly threatening ...Ra6.} (23... Nxd3 24. Qa8+ Kd7 25. Qxb7) (23... Rxh3 24. Rxh3 Ngxh3 25. cxd5 $18) 24. Nxd5 {[%emt 0:06:10]} (24. Qa8+ $17 Kd7 25. Qxb7) 24... Nxd5 {[%emt 0:00:16]} 25. cxd5 {[%emt 0:00:12]} Ra6 {[%emt 0:01:36]} (25... Nxh3 $2 26. Qa8+ Kd7 27. Qxb7 $18) 26. Qe3 {[%emt 0:00:02]} Nf7 {[%emt 0:03:52] Inhibits h4. aiming for ...Bh6.} ({Less strong is} 26... Rxa4 27. Rc1 Ne6 28. dxe6 Qxe6 29. Rxc7+ Kb8 30. Rxg7 $16) 27. Rc1 {[%emt 0:02:15]} Bh6 {[%emt 0:01:03]} (27... Rxa4 $2 28. Rxc7+ Qxc7 29. Nxc7 Kxc7 30. Rc1+ Kb8 31. Qb6 $18) 28. Qg3 {[%emt 0:02:10]} (28. Qc5 Qxc5 29. Rxc5) 28... Bxc1 {[%emt 0:00:40]} 29. Rxc1 {[%emt 0:00:02]} c6 {[%emt 0:03:15]} (29... Rxa4 $2 {perishes.} 30. Qxg6 Ra6 31. d6 $19) 30. Qxg6 {[%emt 0:00:50]} Rh6 {[%emt 0:01:37] Weighted Error Value: White=0.38/Black=0.14 (very precise)} ({And not} 30... Rxa4 31. dxc6 Rf4 32. c7 $11) 0-1

[Event "97th Argentine Championship 2022"]
[Site "Barichole"]
[Date "2022.12.03"]
[Round "4.5"]
[White "Sorin, Ariel"]
[Black "Fiorito, Joaquin"]
[Result "0-1"]
[ECO "D45"]
[WhiteElo "2363"]
[BlackElo "2344"]
[Annotator "TA"]
[PlyCount "77"]
[EventDate "2022.12.01"]
[EventType "tourn"]
[EventCountry "ARG"]
[SourceTitle "playchess.com"]
[Source "ChessBase"]
[SourceQuality "1"]
[TimeControl "40/5400+30:1800+30"]

{[%evp 21,77,0,0,-27,-2,-15,19,14,20,0,-7,-12,-9,-54,-66,-81,-89,-90,-80,-186,-147,-186,-205,-183,-186,-243,-231,-263,-108,-132,-121,-101,-18,-221,-221,-221,-215,-346,-342,-385,-370,-877,-661,-593,-378,-670,-615,-800,-797,-792,-742,-1153,-1131,-1103,-1051,-1053,-1008,-29994]} 1. d4 {[%emt 0:00:02] ChessBase II} Nf6 {[%emt 0:00:09]} 2. c4 {[%emt 0:00:05]} e6 {[%emt 0:00:06]} 3. Nf3 {[%emt 0:00:09]} d5 {[%emt 0:00:08]} 4. Nc3 {[%emt 0:00:04]} c6 {[%emt 0:00:14]} 5. e3 {[%emt 0:01:32]} Nbd7 {[%emt 0:00:08]} 6. Qc2 {[%emt 0:02:01]} Bd6 {[%emt 0:00:27]} 7. Bd2 {[%emt 0:00:59][%cal Bc1d2,Bd2c3,Bc3d4][%mdl 32]} O-O {[%emt 0:00:48]} 8. O-O-O {[%emt 0:10:52]} e5 {[%emt 0:01:07]} 9. cxd5 {[%emt 0:06:45]} cxd5 {[%emt 0:00:29]} 10. Nb5 {[%emt 0:08:33]} Bb8 {[%emt 0:01:06]} 11. dxe5 {[%emt 0:02:44]} Nxe5 {[%emt 0:00:10]} 12. Bc3 {[%emt 0:00:25] D45: Semi-Slav: 5 e3.} Qe7 {[%emt 0:02:10]} 13. Bd4 {[%emt 0:10:21]} b6 {[%emt 0:17:12] Prevents Bc5.} 14. Nc3 {[%emt 0:02:31] [#] The position is equal.} g6 $146 {[%emt 0:05:39]} ({Predecessor:} 14... Bb7 15. Qf5 Neg4 16. Rd2 Qe6 17. Qxe6 fxe6 18. h3 Nxf2 19. Rxf2 Ne4 20. Nxe4 dxe4 21. Bd3 exd3 {0-1 (21) Svensson,O-Varjomaa,T Sweden 1979 Corr Nr. 1 [ChessBase II]}) 15. Be2 {[%emt 0:11:46]} Bf5 {[%emt 0:03:53]} 16. Qb3 {[%emt 0:00:08]} Bd6 {[%emt 0:03:32]} (16... a5 {seems wilder.} 17. Kd2 Bd6 18. Ke1 Rfc8) 17. Nxe5 {[%emt 0:04:29]} Bxe5 {[%emt 0:00:08]} 18. Bf3 {[%emt 0:00:37]} Rac8 {[%emt 0:05:10]} 19. Rd2 {[%emt 0:12:12]} b5 {[%emt 0:10:37]} (19... Rc4 {looks sharper.} 20. Bxd5 Rxd4 21. exd4 Bf4) 20. a3 {[%emt 0:06:31] Inhibits b4.} (20. Kd1 $17) 20... a5 {[%emt 0:00:53] [#] ...b4 is the strong threat.} 21. Bxe5 {[%emt 0:03:33]} Qxe5 {[%emt 0:00:09]} 22. Rd4 {[%emt 0:00:42]} Rc5 {[%emt 0:04:59]} 23. g4 {[%emt 0:02:41]} (23. g3 $142) 23... Be6 {[%emt 0:02:24][%cal Bf5e6,Be6c4,Bc4d3][%mdl 32]} 24. Kb1 {[%emt 0:01:22] [#]} Ne4 {[%emt 0:01:41]} (24... Nxg4 $1 $19 {[%mdl 512] is more deadly.} 25. Bxg4 Bxg4 26. Rxg4 Qf5+ 27. Ne4 dxe4) 25. Bxe4 $17 {[%emt 0:00:54]} dxe4 {[%emt 0:00:06]} 26. Qd1 {[%emt 0:00:03]} b4 {[%emt 0:02:23]} ({Black should try} 26... f5 $17 27. Rd8 Rc8) 27. axb4 $2 {[%emt 0:01:09] Now White is beyond hope.} (27. Nxe4 $11 Rd5 28. f4 (28. axb4 Rfd8 $17) 28... Rxd4 29. Qxd4 Qxd4 30. exd4) 27... axb4 $19 {[%emt 0:00:05]} 28. Rxb4 {[%emt 0:00:18]} Bc4 {[%emt 0:00:20]} 29. Qd4 {[%emt 0:00:20]} (29. Rxc4 {was forced.} Rxc4 30. Qd5 Qxd5 31. Nxd5) 29... Bd3+ {[%emt 0:00:05]} 30. Kc1 {[%emt 0:00:22]} Qc7 {[%emt 0:00:21]} 31. Rb3 $2 {[%emt 0:02:33]} (31. Rd1 Rc6 32. Rxd3 exd3 33. Qxd3) 31... Rc4 {[%emt 0:03:04]} 32. Qb6 {[%emt 0:00:27]} Qe5 {[%emt 0:00:20] aiming for ...Rfc8.} 33. Kd2 $2 {[%emt 0:01:15]} (33. h4 h5 34. Kd2) 33... Rcc8 {[%emt 0:00:06] Black is clearly winning.} 34. f4 {[%emt 0:00:28]} Qe7 {[%emt 0:02:27] ( -> ...Qh4)} 35. g5 {[%emt 0:01:29]} Rfd8 {[%emt 0:35:24][%cal Bf8d8,Bd8d6,Bd6a6][%mdl 32] Threatens to win with ...Qd7.} 36. Rb4 {[%emt 0:01:27]} Rd6 {[%emt 0:01:05]} 37. Qa5 {[%emt 0:00:15]} Ra6 {[%emt 0:00:45]} 38. Rxe4 {[%emt 0:00:42]} Bxe4 {[%emt 0:00:07]} 39. Qb4 {[%emt 0:07:14] Weighted Error Value: White=0.88/Black=0.43} 0-1

[Event "97th Argentine Championship 2022"]
[Site "Barichole"]
[Date "2022.12.04"]
[Round "4.6"]
[White "Valerga, Diego"]
[Black "Gaitan, Juan Manuel"]
[Result "1-0"]
[ECO "E54"]
[WhiteElo "2438"]
[BlackElo "2347"]
[Annotator "TA"]
[PlyCount "83"]
[EventDate "2022.12.01"]
[EventType "tourn"]
[EventCountry "ARG"]
[SourceTitle "playchess.com"]
[Source "ChessBase"]
[SourceQuality "1"]
[TimeControl "40/5400+30:1800+30"]

{[%evp 16,83,17,8,19,9,16,0,6,11,14,13,26,20,72,17,15,10,35,20,67,56,75,71,61,11,79,77,100,103,103,118,214,225,218,218,202,201,244,254,250,243,245,247,250,247,418,428,416,409,387,386,423,415,606,608,560,543,661,654,645,665,637,672,657,655,632,604,585,565]} 1. d4 {[%emt 0:00:04] Kortschnoj,Viktor Lvovich} Nf6 {[%emt 0:00:15]} 2. Nf3 {[%emt 0:00:11]} d5 {[%emt 0:00:08]} 3. c4 {[%emt 0:00:07]} e6 {[%emt 0:01:42]} 4. Nc3 {[%emt 0:00:11]} Bb4 {[%emt 0:05:06]} 5. e3 {[%emt 0:01:48]} O-O {[%emt 0:00:42]} 6. Bd3 {[%emt 0:02:02]} dxc4 {[%emt 0:01:29]} 7. Bxc4 {[%emt 0:00:09]} c5 {[%emt 0:00:05]} 8. O-O {[%emt 0:02:22]} Bd7 {[%emt 0:05:03]} 9. Qe2 {[%emt 0:06:12]} Bc6 {[%emt 0:02:01] E54: Nimzo-Indian: Rubinstein: Main Line: 7...dxc4 8 Bxc4.} 10. Rd1 {[%emt 0:00:40]} (10. Ne5 {seems wilder.} cxd4 11. Rd1 Bxc3 12. bxc3 d3 13. Nxd3 Qc7 14. Bb3) 10... Nbd7 {[%emt 0:00:17]} 11. d5 {[%emt 0:20:19]} exd5 {[%emt 0:02:34] The position is equal.} 12. Nxd5 {[%emt 0:00:11]} Nxd5 {[%emt 0:00:07]} 13. Bxd5 {[%emt 0:00:06]} Qc7 {[%emt 0:11:09]} 14. a3 {[%emt 0:10:28] And now Bxc6 would win.} Ba5 {[%emt 0:01:11] [#]} (14... Bxd5 $11 {remains equal.} 15. Rxd5 Nf6) 15. Bxc6 {[%emt 0:18:02]} (15. b4 $1 $16 {Bxc6 is the strong threat.} cxb4 16. Bb2) 15... Qxc6 $11 {[%emt 0:00:48]} 16. b4 {[%emt 0:00:06]} Bc7 {[%emt 0:10:32]} 17. Bb2 {[%emt 0:01:37]} Rad8 {[%emt 0:00:24]} (17... Rfd8 $11 {feels stronger.}) 18. Rac1 $14 {[%emt 0:05:09]} b6 {[%emt 0:00:12] [#]} 19. Qc2 $146 {[%emt 0:05:26] White is more active.} ({Predecessor:} 19. Qc4 Rfe8 20. Rd5 Qe6 21. Ng5 Qg6 22. h4 h6 23. Nf3 Qe6 24. Rcd1 Nf6 25. Bxf6 Qxf6 26. Rxd8 Rxd8 27. Rxd8+ Qxd8 28. bxc5 {0-1 (39) Beliavsky,A (2667)-Kortschnoj,V (2579) Paks 2004 CBM 102 [Kortschnoj,Viktor Lvovich]}) 19... Rfe8 {[%emt 0:05:57]} 20. Qc3 {[%emt 0:08:54]} ({White should play} 20. h3 $14) 20... Qh6 {[%emt 0:00:09]} (20... Nf6 $11) 21. g3 {[%emt 0:01:07][%cal Bg2g3,Bg3g4,Bg4h5][%mdl 32] Black is now going downhill.} Nf6 {[%emt 0:00:34] Inhibits Rd5.} 22. Qc4 {[%emt 0:02:49]} (22. bxc5 Ne4 23. Qc2 Nxc5 $11) 22... Qh5 {[%emt 0:05:52]} 23. Kg2 {[%emt 0:04:06]} Nd5 {[%emt 0:06:58]} (23... Ne4 $16 {was worth a try.}) 24. g4 $18 {[%emt 0:05:13]} ({Resist} 24. bxc5 $6 Qf5) 24... b5 {[%emt 0:10:05]} 25. gxh5 {[%emt 0:00:08] Chess con chili.} (25. Qxc5 $2 {perishes.} Qxg4+ 26. Kf1 Nxe3+ 27. Qxe3 Rxd1+ 28. Rxd1 Rxe3 $19) 25... bxc4 {[%emt 0:00:02]} 26. bxc5 {[%emt 0:00:14]} Ba5 {[%emt 0:00:26]} 27. Bd4 {[%emt 0:00:48]} ({Not} 27. Rxc4 {[#]} Nxe3+ $1 {[%mdl 512]} 28. fxe3 Rxd1 $17) 27... c3 {[%emt 0:00:11]} 28. Ne5 {[%emt 0:00:32][%cal Bf3e5,Be5c4,Bc4a5][%mdl 32] aiming for Nc6.} Re6 {[%emt 0:01:51] Prevents Nc6.} 29. Nc4 {[%emt 0:01:06]} Bc7 {[%emt 0:00:20]} 30. Bxc3 {[%emt 0:01:10]} f5 $2 {[%emt 0:00:50]} (30... Nxc3 31. Rxd8+ Bxd8) 31. Ba5 {[%emt 0:01:02] Black must now prevent Bxc7.} Rc6 {[%emt 0:01:15]} 32. Bxc7 {[%emt 0:00:54]} Rxc7 {[%emt 0:00:02]} 33. Na5 {[%emt 0:00:53]} Kf7 {[%emt 0:00:24]} 34. c6 {[%emt 0:00:19] Prevents Rcd7.} Ke6 {[%emt 0:00:07]} (34... Ke7 $142 35. Nb3 a6) 35. Nb7 {[%emt 0:01:39] White is clearly winning.} Rdc8 {[%emt 0:00:09]} 36. Nc5+ {[%emt 0:00:58]} Ke5 {[%emt 0:00:09]} 37. f4+ {[%emt 0:00:58]} Kd6 {[%emt 0:00:03]} 38. Nb7+ {[%emt 0:00:19]} Ke6 {[%emt 0:00:03]} 39. Kf3 {[%emt 0:00:31]} Nf6 {[%emt 0:00:43]} 40. Rc5 {[%emt 0:00:00]} Ne4 {[%emt 0:00:00]} 41. Re5+ {[%emt 0:03:36]} Kf6 {[%emt 0:00:27]} 42. Nd6 {[%emt 0:02:07] Weighted Error Value: White=0.06 (flawless) /Black=0.37} 1-0

[Event "97th Argentine Championship 2022"]
[Site "Barichole"]
[Date "2022.12.04"]
[Round "5.1"]
[White "Fiorito, Joaquin"]
[Black "Perez Ponsa, Federico"]
[Result "1/2-1/2"]
[ECO "D38"]
[WhiteElo "2344"]
[BlackElo "2538"]
[Annotator "TA"]
[PlyCount "84"]
[EventDate "2022.12.01"]
[EventType "tourn"]
[EventCountry "ARG"]
[SourceTitle "playchess.com"]
[Source "ChessBase"]
[SourceQuality "1"]
[TimeControl "40/5400+30:1800+30"]

{[%evp 18,84,11,10,0,8,20,23,31,14,25,22,25,25,22,39,27,17,191,183,209,200,235,240,237,237,233,230,228,187,252,238,243,243,237,200,206,200,306,318,315,276,271,270,364,341,355,212,187,126,126,138,137,147,121,29,111,111,101,12,108,79,175,0,0,0,8,8,6]} 1. d4 {[%emt 0:00:02]} d5 {[%emt 0:05:48]} 2. Nf3 {[%emt 0:00:19]} Nf6 {[%emt 0:00:31]} 3. c4 {[%emt 0:00:39]} e6 {[%emt 0:01:41]} 4. Nc3 {[%emt 0:00:15]} Bb4 {[%emt 0:03:10]} 5. Bg5 {[%emt 0:04:03]} h6 {[%emt 0:03:41]} 6. Bxf6 {[%emt 0:00:10]} Qxf6 {[%emt 0:00:05]} 7. Qb3 {[%emt 1:28:32]} c5 {[%emt 0:04:12]} 8. cxd5 {[%emt 0:00:00]} exd5 {[%emt 0:00:20]} 9. a3 {[%emt 0:00:00]} Bxc3+ {[%emt 0:04:17]} 10. Qxc3 {[%emt 0:00:00]} b6 {[%emt 0:03:22] 10...c4 gains popularity. D38: Queen's Gambit Declined: Ragozin Defence (4 Nf3 Bb4).} 11. e3 {[%emt 0:00:00]} O-O {[%emt 0:01:16]} 12. dxc5 {[%emt 0:00:00]} Qxc3+ {[%emt 0:02:25] White has an edge.} 13. bxc3 {[%emt 0:00:00]} bxc5 {[%emt 0:00:05]} 14. O-O-O {[%emt 0:03:30][%cal Ba1d1,Bd1d6,Bd6e6][%mdl 32]} Be6 {[%emt 0:02:00]} 15. c4 {[%emt 0:00:00]} dxc4 {[%emt 0:06:07]} 16. Ne5 {[%emt 0:00:00][%cal Od1d6] Inhibits Nc6.} Re8 {[%emt 0:01:44]} 17. Rd6 {[%emt 0:00:00][%mdl 1024] [#] White has compensation.} c3 $146 {[%emt 0:03:19]} (17... Bf5 $11 {and Black stays safe.}) ({Predecessor:} 17... Bf5 18. Nxc4 Nd7 19. Bd3 Bxd3 20. Rxd3 Nb6 21. Nd6 Re5 22. Kc2 Rd5 23. Rxd5 Nxd5 {1-0 (58) Tomashevsky,E (2724)-Inarkiev,E (2732) Novosibirsk 2016}) 18. Bb5 $18 {[%emt 0:00:00]} Rc8 {[%emt 0:00:15]} 19. Rhd1 {[%emt 0:00:00] Black must now prevent Rd8+.} Kf8 {[%emt 0:00:05] [#]} 20. Ng6+ $1 {[%emt 0:00:00][%mdl 576] Deflection} fxg6 {[%emt 0:00:16]} 21. Rxe6 {[%emt 0:00:00]} a6 {[%emt 0:03:10]} 22. Bc4 {[%emt 0:00:00]} Ra7 {[%emt 0:12:15]} 23. Kc2 {[%emt 0:00:00]} Nd7 {[%emt 0:04:49]} (23... Rf7 $142) 24. Kxc3 {[%emt 0:00:00]} Nf6 {[%emt 0:00:34]} 25. f3 {[%emt 0:00:00]} (25. Rxa6 Rxa6 26. Bxa6 Ra8 $16) 25... a5 {[%emt 0:01:48]} 26. Rb6 {[%emt 0:00:00]} g5 {[%emt 0:01:29]} 27. e4 {[%emt 0:00:00]} Re7 {[%emt 0:03:02]} (27... a4 $142 28. Bb5 Nh5) 28. Ra6 {[%emt 0:00:00]} g4 {[%emt 0:00:36]} 29. Rxa5 {[%emt 0:00:00]} gxf3 {[%emt 0:00:10]} 30. gxf3 {[%emt 0:00:00]} g5 {[%emt 0:00:09]} 31. Rd6 {[%emt 0:00:00]} Kg7 {[%emt 0:00:06]} 32. Be6 {[%emt 0:00:00]} (32. a4 $142) 32... Rf8 {[%emt 0:06:35]} 33. Bf5 {[%emt 0:00:00]} (33. Rxc5 $18 {Strongly threatening a4.} Ne8 34. Rd7 Rxf3+ 35. Kd4) 33... g4 $16 {[%emt 0:02:33]} 34. fxg4 {[%emt 0:00:00] White is more active.} (34. Rxc5 $6 gxf3 35. Kd3 f2 $11) 34... Nxe4+ {[%emt 0:00:14]} 35. Bxe4 {[%emt 0:00:00]} Rxe4 {[%emt 0:00:03]} 36. Rxc5 {[%emt 0:00:00]} (36. Ra7+ $16 Rf7 37. Rxf7+ Kxf7 38. h3 (38. Rxh6 Rxg4 39. Kb3 Ke7 $16)) 36... Rxg4 {[%emt 0:04:48][%mdl 4096] Endgame KRR-KRR} (36... Re3+ $1 $11 37. Kd2 Rxa3) 37. Rc7+ {[%emt 0:00:00]} Kg8 {[%emt 0:01:00]} 38. Rc4 {[%emt 0:00:00]} ({Reject} 38. Rxh6 $6 Rf3+ 39. Kc2 Rg2+ 40. Kb1 Rb3+ 41. Ka1 Rxa3+ 42. Kb1 Rb3+ 43. Kc1 Ra3 $11) (38. Rd3 $16) 38... Rg1 {[%emt 0:02:37]} (38... Rg2 $11 {keeps the balance.}) 39. Rdc6 {[%emt 0:00:00][%cal Oc6c8]} ({Much weaker is} 39. Rxh6 $6 Rc1+ 40. Kb3 Rf3+ 41. Kb4 Rxc4+ 42. Kxc4 Rxa3 $11) 39... Rg2 {[%emt 0:09:02] [#]} (39... Rf2 $16) 40. Rxh6 $2 {[%emt 0:00:00]} ({White must play} 40. Rc8 $1 $18) 40... Rf3+ $11 {[%emt 0:00:00] The position is equal.} 41. Kb4 {[%emt 0:00:00] a4 is the strong threat.} Rb2+ {[%emt 0:00:13]} 42. Ka4 {[%emt 0:00:00]} Ra2 $1 {[%emt 0:00:21] Weighted Error Value: White=0.30/Black=0.30} 1/2-1/2